[Event "*** MasterClass Titled Tuesday Blitz"]
[Site "Chess.com"]
[Date "2017.11.07"]
[Round "5"]
[White "pastouche06"]
[Black "Ar4uha"]
[Result "1-0"]
[WhiteElo "2347"]
[BlackElo "2419"]
[TimeControl "180+2"]
[EndTime "15:16:40 PST"]
[Termination "pastouche06 won by checkmate"]

1. e4 {[%clk 0:03:01.9]} 1... d6 {[%clk 0:03:00.5]} 2. d4 {[%clk 0:03:02.2]}
2... Nf6 {[%clk 0:03:01.9]} 3. Nc3 {[%clk 0:03:03.4]} 3... e5 {[%clk 0:03:03.8]}
4. dxe5 {[%clk 0:03:02]} 4... dxe5 {[%clk 0:03:05.7]} 5. Qxd8+ {[%clk
0:03:03.1]} 5... Kxd8 {[%clk 0:03:07.6]} 6. Nf3 {[%clk 0:03:04]} 6... Bd6 {[%clk
0:02:55.9]} 7. Bc4 {[%clk 0:03:04.3]} 7... Ke7 {[%clk 0:02:55.4]} 8. h3 {[%clk
0:03:02.7]} 8... c6 {[%clk 0:02:55.9]} 9. Be3 {[%clk 0:02:57.6]} 9... b5 {[%clk
0:02:55.5]} 10. Bd3 {[%clk 0:02:53.5]} 10... Be6 {[%clk 0:02:53.4]} 11. a4
{[%clk 0:02:41]} 11... b4 {[%clk 0:02:53.6]} 12. Ne2 {[%clk 0:02:34.5]} 12...
Nbd7 {[%clk 0:02:55]} 13. Nd2 {[%clk 0:02:31.4]} 13... Nc5 {[%clk 0:02:54]} 14.
O-O {[%clk 0:02:11.9]} 14... Rhd8 {[%clk 0:02:53]} 15. Rfc1 {[%clk 0:01:51.7]}
15... h6 {[%clk 0:02:29.8]} 16. f3 {[%clk 0:01:48.5]} 16... Rd7 {[%clk
0:02:26.1]} 17. Nc4 {[%clk 0:01:40]} 17... Nxd3 {[%clk 0:02:17.5]} 18. cxd3
{[%clk 0:01:40.2]} 18... Bc7 {[%clk 0:02:19]} 19. d4 {[%clk 0:01:29.5]} 19...
exd4 {[%clk 0:01:47.4]} 20. Nxd4 {[%clk 0:01:29.6]} 20... Kf8 {[%clk 0:01:03.7]}
21. Nxc6 {[%clk 0:01:25.6]} 21... a5 {[%clk 0:00:45.2]} 22. Nb6 {[%clk 0:01:05]}
22... Bxb6 {[%clk 0:00:46.2]} 23. Bxb6 {[%clk 0:01:05.7]} 23... Ke8 {[%clk
0:00:36]} 24. Bxa5 {[%clk 0:00:58.6]} 24... Ra6 {[%clk 0:00:34.1]} 25. Bxb4
{[%clk 0:00:47.5]} 25... Rc7 {[%clk 0:00:35.4]} 26. Na5 {[%clk 0:00:32.4]} 26...
Rxc1+ {[%clk 0:00:37.3]} 27. Rxc1 {[%clk 0:00:33.4]} 27... Bd7 {[%clk
0:00:35.8]} 28. b3 {[%clk 0:00:28.8]} 28... Be6 {[%clk 0:00:37.1]} 29. Rc6
{[%clk 0:00:25.8]} 29... Ra8 {[%clk 0:00:37]} 30. Nc4 {[%clk 0:00:23.1]} 30...
Rb8 {[%clk 0:00:36]} 31. Rb6 {[%clk 0:00:19.3]} 31... Ra8 {[%clk 0:00:31.9]} 32.
Nd6+ {[%clk 0:00:18.9]} 32... Kd7 {[%clk 0:00:32.3]} 33. Ba3 {[%clk 0:00:15.5]}
33... Kc7 {[%clk 0:00:30.3]} 34. Rb5 {[%clk 0:00:13.5]} 34... Nd7 {[%clk
0:00:27.6]} 35. Nf5 {[%clk 0:00:12.8]} 35... Bxf5 {[%clk 0:00:18]} 36. Rxf5
{[%clk 0:00:12.6]} 36... f6 {[%clk 0:00:19.5]} 37. Rb5 {[%clk 0:00:12.5]} 37...
Kc6 {[%clk 0:00:21]} 38. Bc1 {[%clk 0:00:11.2]} 38... Nc5 {[%clk 0:00:21.1]} 39.
Be3 {[%clk 0:00:12]} 39... Nd3 {[%clk 0:00:21.2]} 40. Kf1 {[%clk 0:00:10.9]}
40... Rd8 {[%clk 0:00:14.1]} 41. Ke2 {[%clk 0:00:11.2]} 41... Ne5 {[%clk
0:00:14.1]} 42. Rb6+ {[%clk 0:00:10.6]} 42... Kc7 {[%clk 0:00:15.3]} 43. a5
{[%clk 0:00:11]} 43... Ra8 {[%clk 0:00:16]} 44. b4 {[%clk 0:00:10.4]} 44... Nd7
{[%clk 0:00:15.5]} 45. Re6 {[%clk 0:00:07.1]} 45... Rb8 {[%clk 0:00:15.4]} 46.
Bd2 {[%clk 0:00:07.5]} 46... Ne5 {[%clk 0:00:13.3]} 47. Re7+ {[%clk 0:00:06.3]}
47... Kc6 {[%clk 0:00:14.9]} 48. Rxg7 {[%clk 0:00:07.4]} 48... Nc4 {[%clk
0:00:16.4]} 49. Be1 {[%clk 0:00:06.7]} 49... Rd8 {[%clk 0:00:15.9]} 50. Rg6
{[%clk 0:00:07.4]} 50... Rd6 {[%clk 0:00:16.7]} 51. Rxh6 {[%clk 0:00:08.6]}
51... Kb5 {[%clk 0:00:18.2]} 52. Rh8 {[%clk 0:00:08.4]} 52... Rc6 {[%clk
0:00:17.9]} 53. Rb8+ {[%clk 0:00:09.2]} 53... Ka4 {[%clk 0:00:19.4]} 54. b5
{[%clk 0:00:07.1]} 54... Re6 {[%clk 0:00:20.6]} 55. a6 {[%clk 0:00:08.3]} 55...
Re7 {[%clk 0:00:21]} 56. Rb7 {[%clk 0:00:08.5]} 56... Re8 {[%clk 0:00:22.4]} 57.
b6 {[%clk 0:00:09.7]} 57... Ra8 {[%clk 0:00:23.3]} 58. a7 {[%clk 0:00:10.8]}
58... Kb5 {[%clk 0:00:24.9]} 59. Rb8 {[%clk 0:00:11.9]} 59... Nxb6 {[%clk
0:00:26.8]} 60. Rxa8 {[%clk 0:00:11.9]} 60... Nxa8 {[%clk 0:00:28.7]} 61. Bf2
{[%clk 0:00:12.3]} 61... Kc6 {[%clk 0:00:29.7]} 62. h4 {[%clk 0:00:13.7]} 62...
Kd6 {[%clk 0:00:31.6]} 63. h5 {[%clk 0:00:15]} 63... Ke6 {[%clk 0:00:33.5]} 64.
h6 {[%clk 0:00:16.2]} 64... Kf7 {[%clk 0:00:34.6]} 65. Be3 {[%clk 0:00:17.5]}
65... Kg6 {[%clk 0:00:36.1]} 66. g4 {[%clk 0:00:18.8]} 66... Nc7 {[%clk
0:00:38]} 67. Kd3 {[%clk 0:00:20]} 67... Na8 {[%clk 0:00:39.4]} 68. Kc4 {[%clk
0:00:21.1]} 68... Nc7 {[%clk 0:00:41.3]} 69. Kc5 {[%clk 0:00:20.3]} 69... Na8
{[%clk 0:00:41.1]} 70. Kc6 {[%clk 0:00:21.3]} 70... f5 {[%clk 0:00:42.5]} 71.
exf5+ {[%clk 0:00:21.7]} 71... Kh7 {[%clk 0:00:43.9]} 72. Kb7 {[%clk 0:00:21.5]}
72... Kg8 {[%clk 0:00:45.5]} 73. Kxa8 {[%clk 0:00:21.9]} 73... Kf7 {[%clk
0:00:47.4]} 74. Kb7 {[%clk 0:00:23]} 74... Kg8 {[%clk 0:00:48.5]} 75. a8=Q+
{[%clk 0:00:21.9]} 75... Kh7 {[%clk 0:00:50.4]} 76. Qa1 {[%clk 0:00:17.3]} 76...
Kg8 {[%clk 0:00:51.1]} 77. Qg7# {[%clk 0:00:17.8]} 1-0

[Event "*** MasterClass Titled Tuesday Blitz"]
[Site "Chess.com"]
[Date "2017.11.07"]
[Round "5"]
[White "AttilaTurzo"]
[Black "miaou33"]
[Result "1-0"]
[WhiteElo "2360"]
[BlackElo "2296"]
[TimeControl "180+2"]
[EndTime "15:17:27 PST"]
[Termination "AttilaTurzo won by resignation"]

1. d4 {[%clk 0:03:01.9]} 1... e6 {[%clk 0:02:59.2]} 2. Bf4 {[%clk 0:03:01.9]}
2... Nf6 {[%clk 0:02:51.2]} 3. e3 {[%clk 0:03:01.9]} 3... c5 {[%clk 0:02:44.2]}
4. Nf3 {[%clk 0:03:03.1]} 4... d5 {[%clk 0:02:44.8]} 5. c3 {[%clk 0:03:02.6]}
5... Nc6 {[%clk 0:02:45.5]} 6. Nbd2 {[%clk 0:03:02.9]} 6... cxd4 {[%clk
0:02:46.3]} 7. exd4 {[%clk 0:03:03]} 7... Nh5 {[%clk 0:02:47]} 8. Bg5 {[%clk
0:03:01.2]} 8... f6 {[%clk 0:02:43.8]} 9. Be3 {[%clk 0:03:02.1]} 9... Bd6 {[%clk
0:02:43.3]} 10. g3 {[%clk 0:02:52.5]} 10... O-O {[%clk 0:02:40.1]} 11. Bg2
{[%clk 0:02:44.4]} 11... f5 {[%clk 0:02:40]} 12. Ne5 {[%clk 0:02:40.5]} 12...
Qe8 {[%clk 0:02:26.7]} 13. f4 {[%clk 0:02:39.1]} 13... Nf6 {[%clk 0:02:24.6]}
14. O-O {[%clk 0:02:37.5]} 14... Nd7 {[%clk 0:02:08.2]} 15. h3 {[%clk
0:02:24.7]} 15... Ndxe5 {[%clk 0:02:02.9]} 16. dxe5 {[%clk 0:02:19.4]} 16... Bc7
{[%clk 0:01:59.8]} 17. g4 {[%clk 0:02:20]} 17... g6 {[%clk 0:01:58.7]} 18. gxf5
{[%clk 0:02:17.1]} 18... gxf5 {[%clk 0:02:00.6]} 19. Rf3 {[%clk 0:02:03.3]}
19... Kh8 {[%clk 0:02:00.5]} 20. Rg3 {[%clk 0:02:04]} 20... Bd7 {[%clk
0:01:46.9]} 21. Kh2 {[%clk 0:01:59.1]} 21... Qf7 {[%clk 0:01:47.3]} 22. Qe2
{[%clk 0:01:44.7]} 22... Rg8 {[%clk 0:01:47.2]} 23. Rxg8+ {[%clk 0:01:44.3]}
23... Rxg8 {[%clk 0:01:49.1]} 24. Rg1 {[%clk 0:01:45.2]} 24... a6 {[%clk
0:01:43.5]} 25. Bf2 {[%clk 0:01:42.5]} 25... Bd8 {[%clk 0:01:36.8]} 26. Nf3
{[%clk 0:01:39.1]} 26... h6 {[%clk 0:01:23.1]} 27. Bh4 {[%clk 0:01:36.5]} 27...
Kh7 {[%clk 0:01:20.8]} 28. Bxd8 {[%clk 0:01:34.6]} 28... Nxd8 {[%clk 0:01:22.7]}
29. Nd4 {[%clk 0:01:31.7]} 29... Nc6 {[%clk 0:01:20.2]} 30. Nb3 {[%clk
0:01:29.5]} 30... Qg7 {[%clk 0:01:14]} 31. Qf2 {[%clk 0:01:30]} 31... Qf8 {[%clk
0:00:54.6]} 32. Bf3 {[%clk 0:01:27.4]} 32... Ne7 {[%clk 0:00:49.2]} 33. Bh5
{[%clk 0:01:12.5]} 33... Ng6 {[%clk 0:00:28]} 34. Bxg6+ {[%clk 0:01:09.8]} 34...
Rxg6 {[%clk 0:00:29.9]} 35. Rxg6 {[%clk 0:01:11.5]} 35... Kxg6 {[%clk
0:00:30.7]} 36. Qh4 {[%clk 0:01:01.4]} 36... Ba4 {[%clk 0:00:22.6]} 37. Nd4
{[%clk 0:01:01.8]} 37... Bd7 {[%clk 0:00:20.3]} 38. Kg3 {[%clk 0:00:59]} 38...
b5 {[%clk 0:00:15.9]} 39. a3 {[%clk 0:00:56.1]} 39... Kh7 {[%clk 0:00:16.4]} 40.
Kf2 {[%clk 0:00:54.8]} 40... a5 {[%clk 0:00:16.8]} 41. b4 {[%clk 0:00:51.4]}
41... axb4 {[%clk 0:00:16.7]} 42. axb4 {[%clk 0:00:53.3]} 42... Bc8 {[%clk
0:00:16.8]} 43. Ke3 {[%clk 0:00:48.4]} 43... Bd7 {[%clk 0:00:15.4]} 44. Qf6
{[%clk 0:00:27]} 44... Qc8 {[%clk 0:00:12.2]} 45. Qf7+ {[%clk 0:00:24.4]} 45...
Kh8 {[%clk 0:00:12.8]} 46. Qf6+ {[%clk 0:00:23.5]} 46... Kh7 {[%clk 0:00:14.2]}
47. Kd2 {[%clk 0:00:25.1]} 47... Qe8 {[%clk 0:00:12.3]} 48. Kc2 {[%clk
0:00:23.5]} 48... Bc8 {[%clk 0:00:11.2]} 49. Kb2 {[%clk 0:00:24.4]} 49... Bd7
{[%clk 0:00:10.5]} 50. Nb3 {[%clk 0:00:25.6]} 50... Bc8 {[%clk 0:00:07.4]} 51.
Nc5 {[%clk 0:00:26.6]} 51... Qg8 {[%clk 0:00:08]} 52. Qe7+ {[%clk 0:00:26.1]}
52... Kh8 {[%clk 0:00:08.2]} 53. Kb3 {[%clk 0:00:25.3]} 53... h5 {[%clk
0:00:05.5]} 54. h4 {[%clk 0:00:25.2]} 54... Qg7 {[%clk 0:00:05]} 55. Qxg7+
{[%clk 0:00:24.5]} 55... Kxg7 {[%clk 0:00:06.9]} 56. Kc2 {[%clk 0:00:25.5]}
56... Kf8 {[%clk 0:00:08]} 57. Kd3 {[%clk 0:00:27.4]} 57... Ke7 {[%clk
0:00:09.9]} 58. Kd4 {[%clk 0:00:29.3]} 58... Kd8 {[%clk 0:00:10.5]} 59. Nb3
{[%clk 0:00:30.9]} 59... Kc7 {[%clk 0:00:12]} 60. Nd2 {[%clk 0:00:32.2]} 60...
Bd7 {[%clk 0:00:13.1]} 61. Nf1 {[%clk 0:00:34.1]} 61... Kb6 {[%clk 0:00:13.6]}
62. Ng3 {[%clk 0:00:36]} 62... Be8 {[%clk 0:00:14.4]} 63. Ne2 {[%clk 0:00:34.5]}
63... Bf7 {[%clk 0:00:15.7]} 64. Nc1 {[%clk 0:00:35.4]} 64... Be8 {[%clk
0:00:16.6]} 65. Nd3 {[%clk 0:00:37.3]} 65... Bf7 {[%clk 0:00:17.2]} 66. Nc5
{[%clk 0:00:37.6]} 66... Kc6 {[%clk 0:00:18]} 67. Nb3 {[%clk 0:00:35.7]} 67...
Be8 {[%clk 0:00:18]} 68. Na5+ {[%clk 0:00:35.1]} 68... Kb6 {[%clk 0:00:18.2]}
69. Kd3 {[%clk 0:00:36.3]} 69... Bf7 {[%clk 0:00:15.3]} 70. Nb3 {[%clk
0:00:36.5]} 70... Be8 {[%clk 0:00:14]} 71. Nd4 {[%clk 0:00:38.4]} 71... Bd7
{[%clk 0:00:15]} 72. Nf3 {[%clk 0:00:40.3]} 72... Kc7 {[%clk 0:00:11.8]} 73. Ng5
{[%clk 0:00:40.7]} 73... Kb6 {[%clk 0:00:11.9]} 74. Kd4 {[%clk 0:00:42.2]} 74...
Bc8 {[%clk 0:00:10.2]} 75. Nh7 {[%clk 0:00:42.8]} 75... Bd7 {[%clk 0:00:07.5]}
76. Nf6 {[%clk 0:00:44.7]} 76... Bc8 {[%clk 0:00:08.7]} 77. Nxh5 {[%clk
0:00:45.7]} 77... Bd7 {[%clk 0:00:10.6]} 78. Nf6 {[%clk 0:00:47]} 78... Be8
{[%clk 0:00:12.5]} 79. Nxe8 {[%clk 0:00:47.6]} 1-0

[Event "*** MasterClass Titled Tuesday Blitz"]
[Site "Chess.com"]
[Date "2017.11.07"]
[Round "5"]
[White "TheMagician"]
[Black "twitchTriniCupid"]
[Result "0-1"]
[WhiteElo "2253"]
[BlackElo "2102"]
[TimeControl "180+2"]
[EndTime "15:17:40 PST"]
[Termination "twitchTriniCupid won by resignation"]

1. d4 {[%clk 0:03:01.9]} 1... Nf6 {[%clk 0:03:00.7]} 2. Nf3 {[%clk 0:03:03.8]}
2... e6 {[%clk 0:03:02.2]} 3. g3 {[%clk 0:03:05]} 3... d5 {[%clk 0:03:00.1]} 4.
Bg2 {[%clk 0:03:06.9]} 4... c5 {[%clk 0:03:01.1]} 5. c4 {[%clk 0:03:06.6]} 5...
cxd4 {[%clk 0:03:01]} 6. Nxd4 {[%clk 0:03:03.4]} 6... Bb4+ {[%clk 0:03:01.8]} 7.
Bd2 {[%clk 0:03:03.4]} 7... Be7 {[%clk 0:03:02.2]} 8. cxd5 {[%clk 0:02:59.5]}
8... exd5 {[%clk 0:03:03]} 9. Nc3 {[%clk 0:02:59.9]} 9... Nc6 {[%clk 0:03:03.5]}
10. Be3 {[%clk 0:03:00.2]} 10... O-O {[%clk 0:03:03.9]} 11. O-O {[%clk
0:02:56.1]} 11... Ne5 {[%clk 0:03:02.2]} 12. Bg5 {[%clk 0:02:55.8]} 12... Be6
{[%clk 0:02:56]} 13. Qb3 {[%clk 0:02:45.3]} 13... Nc4 {[%clk 0:02:48.1]} 14.
Rfd1 {[%clk 0:02:39.4]} 14... Qb6 {[%clk 0:02:28.3]} 15. Qxb6 {[%clk 0:02:31.8]}
15... Nxb6 {[%clk 0:01:45.6]} 16. Ndb5 {[%clk 0:02:25.9]} 16... Rfd8 {[%clk
0:01:41.7]} 17. e3 {[%clk 0:02:15]} 17... Rd7 {[%clk 0:01:23.6]} 18. h3 {[%clk
0:02:04.8]} 18... a6 {[%clk 0:01:22.5]} 19. Nd4 {[%clk 0:02:04.8]} 19... Rc8
{[%clk 0:01:20.3]} 20. Nce2 {[%clk 0:01:53.3]} 20... Nc4 {[%clk 0:01:18.1]} 21.
b3 {[%clk 0:01:53.6]} 21... Nd6 {[%clk 0:00:49.3]} 22. Nf4 {[%clk 0:01:53.4]}
22... Nde4 {[%clk 0:00:49.6]} 23. Bxe4 {[%clk 0:01:48.4]} 23... Nxe4 {[%clk
0:00:47.7]} 24. Ndxe6 {[%clk 0:01:47.3]} 24... fxe6 {[%clk 0:00:40.4]} 25. Bxe7
{[%clk 0:01:47.8]} 25... Rxe7 {[%clk 0:00:41.1]} 26. Rac1 {[%clk 0:01:48]} 26...
Rf8 {[%clk 0:00:39.9]} 27. h4 {[%clk 0:01:42.5]} 27... g6 {[%clk 0:00:39.1]} 28.
Nd3 {[%clk 0:01:40.1]} 28... Ref7 {[%clk 0:00:38.5]} 29. Rc2 {[%clk 0:01:40.1]}
29... Kg7 {[%clk 0:00:31.3]} 30. Kg2 {[%clk 0:01:41.1]} 30... h6 {[%clk
0:00:32.3]} 31. Nf4 {[%clk 0:01:37.7]} 31... Re7 {[%clk 0:00:30.5]} 32. Rdc1
{[%clk 0:01:33.4]} 32... Rff7 {[%clk 0:00:30.8]} 33. Rc7 {[%clk 0:01:29.3]}
33... g5 {[%clk 0:00:29.8]} 34. Rxe7 {[%clk 0:01:26.3]} 34... Rxe7 {[%clk
0:00:30.4]} 35. hxg5 {[%clk 0:01:27.4]} 35... hxg5 {[%clk 0:00:31.2]} 36. Nd3
{[%clk 0:01:28.4]} 36... Rf7 {[%clk 0:00:31.4]} 37. f3 {[%clk 0:01:28.9]} 37...
Nd6 {[%clk 0:00:31.2]} 38. g4 {[%clk 0:01:29.5]} 38... Kf6 {[%clk 0:00:31.8]}
39. Rf1 {[%clk 0:01:28]} 39... e5 {[%clk 0:00:31.8]} 40. f4 {[%clk 0:01:28.8]}
40... exf4 {[%clk 0:00:32.3]} 41. exf4 {[%clk 0:01:29.8]} 41... Ke7 {[%clk
0:00:21.6]} 42. f5 {[%clk 0:01:30.1]} 42... Ne4 {[%clk 0:00:22.2]} 43. Nb4
{[%clk 0:01:30.3]} 43... Kd6 {[%clk 0:00:22.5]} 44. Rd1 {[%clk 0:01:31]} 44...
Nf6 {[%clk 0:00:23.6]} 45. Re1 {[%clk 0:01:31.8]} 45... Re7 {[%clk 0:00:24.3]}
46. Rxe7 {[%clk 0:01:32]} 46... Kxe7 {[%clk 0:00:26.2]} 47. Kf3 {[%clk
0:01:32.5]} 47... Kd6 {[%clk 0:00:27.6]} 48. Nd3 {[%clk 0:01:33.2]} 48... d4
{[%clk 0:00:26.6]} 49. a4 {[%clk 0:01:29]} 49... a5 {[%clk 0:00:26.8]} 50. b4
{[%clk 0:01:29.9]} 50... axb4 {[%clk 0:00:27.6]} 51. Nxb4 {[%clk 0:01:31.2]}
51... Kc5 {[%clk 0:00:29]} 52. Nd3+ {[%clk 0:01:32.3]} 52... Kd5 {[%clk
0:00:30.3]} 53. a5 {[%clk 0:01:33]} 53... Nd7 {[%clk 0:00:23]} 54. Nf2 {[%clk
0:01:31.1]} 54... Ne5+ {[%clk 0:00:23.3]} 55. Ke2 {[%clk 0:01:29.5]} 55... Kc4
{[%clk 0:00:24.3]} 56. Kd2 {[%clk 0:01:30.5]} 56... Nf3+ {[%clk 0:00:24.3]} 57.
Kc2 {[%clk 0:01:31]} 57... Ne5 {[%clk 0:00:25.5]} 58. Ne4 {[%clk 0:01:30.7]}
58... Nxg4 {[%clk 0:00:25.1]} 59. Nxg5 {[%clk 0:01:32]} 59... Ne3+ {[%clk
0:00:26.3]} 60. Kd2 {[%clk 0:01:33]} 60... Nxf5 {[%clk 0:00:27.8]} 61. Ne6
{[%clk 0:01:32.2]} 61... Nd6 {[%clk 0:00:24]} 62. Nd8 {[%clk 0:01:34.1]} 62...
Ne4+ {[%clk 0:00:22.3]} 63. Ke2 {[%clk 0:01:32.5]} 63... Nc5 {[%clk 0:00:21.2]}
64. Kd2 {[%clk 0:01:31.3]} 64... Kb5 {[%clk 0:00:21.3]} 65. a6 {[%clk
0:01:28.1]} 65... bxa6 {[%clk 0:00:21.9]} 66. Nf7 {[%clk 0:01:27.5]} 66... Kc4
{[%clk 0:00:22.4]} 67. Ne5+ {[%clk 0:01:27]} 67... Kd5 {[%clk 0:00:23.8]} 68.
Nf3 {[%clk 0:01:27.3]} 68... Ke4 {[%clk 0:00:24.6]} 69. Ng5+ {[%clk 0:01:26.7]}
69... Kd5 {[%clk 0:00:25.8]} 70. Nf3 {[%clk 0:01:28]} 70... a5 {[%clk
0:00:27.1]} 71. Kc2 {[%clk 0:01:29.2]} 71... Kc4 {[%clk 0:00:27.6]} 72. Nd2+
{[%clk 0:01:29.6]} 72... Kb4 {[%clk 0:00:28.5]} 73. Kb2 {[%clk 0:01:30.4]} 73...
a4 {[%clk 0:00:29.5]} 74. Nb1 {[%clk 0:01:31.3]} 74... Nd3+ {[%clk 0:00:28.9]}
75. Ka2 {[%clk 0:01:31.9]} 75... Ne1 {[%clk 0:00:29]} 76. Kb2 {[%clk 0:01:31.8]}
76... d3 {[%clk 0:00:29.9]} 77. Nd2 {[%clk 0:01:32.3]} 77... Nc2 {[%clk
0:00:29.6]} 78. Nb1 {[%clk 0:01:31.4]} 78... a3+ {[%clk 0:00:28.2]} 79. Ka2
{[%clk 0:01:29.9]} 79... Kc4 {[%clk 0:00:26.1]} 80. Nd2+ {[%clk 0:01:28.3]}
80... Kc3 {[%clk 0:00:27.3]} 81. Nb1+ {[%clk 0:01:29.3]} 81... Kd4 {[%clk
0:00:28.6]} 82. Kb3 {[%clk 0:01:30.4]} 82... Ke3 {[%clk 0:00:29.8]} 83. Nc3
{[%clk 0:01:31.3]} 83... Kd2 {[%clk 0:00:27.5]} 84. Ne4+ {[%clk 0:01:32.5]}
84... Ke3 {[%clk 0:00:28.6]} 85. Nc3 {[%clk 0:01:33.6]} 85... Kd4 {[%clk
0:00:23.2]} 86. Nb5+ {[%clk 0:01:33.4]} 86... Ke3 {[%clk 0:00:24.3]} 87. Nc3
{[%clk 0:01:34.7]} 87... Kf3 {[%clk 0:00:22.9]} 88. Na2 {[%clk 0:01:35.3]} 88...
Ke2 {[%clk 0:00:23]} 89. Kc3 {[%clk 0:01:36]} 89... d2 {[%clk 0:00:22.6]} 90.
Kb3 {[%clk 0:01:34.7]} 90... Nd4+ {[%clk 0:00:22.2]} 91. Kxa3 {[%clk 0:01:34.1]}
91... Kd3 {[%clk 0:00:23.2]} 92. Nb4+ {[%clk 0:01:28.9]} 92... Kc3 {[%clk
0:00:24.4]} 93. Nd5+ {[%clk 0:01:29.6]} 93... Kd3 {[%clk 0:00:24.9]} 94. Nf4+
{[%clk 0:01:30.8]} 94... Ke3 {[%clk 0:00:25]} 95. Nd5+ {[%clk 0:01:32.1]} 95...
Kd3 {[%clk 0:00:26]} 96. Nb4+ {[%clk 0:01:30.6]} 96... Kc4 {[%clk 0:00:22.7]}
97. Nd3 {[%clk 0:01:25.4]} 97... Kxd3 {[%clk 0:00:22.3]} 98. Kb4 {[%clk
0:01:26.9]} 98... d1=Q {[%clk 0:00:22.9]} 99. Kc5 {[%clk 0:01:28.8]} 99... Qc1+
{[%clk 0:00:24]} 100. Kd5 {[%clk 0:01:30.7]} 100... Nb3 {[%clk 0:00:24.7]} 101.
Ke5 {[%clk 0:01:31.9]} 101... Qc5+ {[%clk 0:00:25.6]} 102. Kf4 {[%clk
0:01:32.6]} 102... Qe3+ {[%clk 0:00:25.8]} 103. Kf5 {[%clk 0:01:33.5]} 103...
Nd4+ {[%clk 0:00:26.4]} 0-1